[Event "EICC 2021"]
[Site "Reykjavik"]
[Date "2021.09.05"]
[Round "11.31"]
[White "Saraci, Nderim"]
[Black "Ter-Sahakyan, Samvel"]
[Result "1/2-1/2"]
[ECO "E11"]
[WhiteElo "2455"]
[BlackElo "2624"]
[Annotator "RC"]
[PlyCount "103"]
[EventDate "2021.08.26"]
[EventType "swiss"]
[EventCountry "ISL"]
[Tiebreak "Cut1 Buchholz"]
[SourceTitle "playchess.com"]
[Source "ChessBase"]
[SourceQuality "1"]
[TimeControl "40/5400+30:1800+30"]

1. d4 {[%emt 0:00:04]} Nf6 {[%emt 0:00:10]} 2. Nf3 {[%emt 0:00:13]} d5 {
[%emt 0:00:10]} 3. c4 {[%emt 0:00:47]} e6 {[%emt 0:00:10]} 4. g3 {[%emt 0:00:
39]} Bb4+ {[%emt 0:00:10]} 5. Bd2 {[%emt 0:00:15]} a5 {[%emt 0:00:09]} 6. Bg2 {
[%emt 0:01:00]} O-O {[%emt 0:00:11]} 7. Qc2 {[%emt 0:01:49]} c5 {[%emt 0:00:13]
} 8. cxd5 {[%emt 0:01:15]} cxd4 {[%emt 0:00:09]} 9. Nxd4 {[%emt 0:00:34]} Qb6 {
[%emt 0:00:09]} 10. e3 {[%emt 0:00:36]} exd5 {[%emt 0:00:07]} 11. O-O {[%emt 0:
00:19]} Nc6 {[%emt 0:00:12]} 12. Nxc6 {[%emt 0:00:35]} bxc6 {[%emt 0:00:05]}
13. Rc1 {[%emt 0:01:35]} Rb8 {[%emt 0:02:47]} 14. Nc3 {[%emt 0:05:53]} h5 {
[%emt 0:00:25]} 15. Na4 {[%emt 0:06:20]} Qd8 {[%emt 0:04:28]} 16. Bxb4 {
[%emt 0:07:17]} Rxb4 {[%emt 0:00:09]} 17. b3 {[%emt 0:07:06]} h4 {[%emt 0:04:
14]} 18. a3 {[%emt 0:02:28]} Rb8 {[%emt 0:04:00]} 19. Qxc6 {[%emt 0:19:14]}
Rxb3 {[%emt 0:20:58]} 20. Qc7 {[%emt 0:04:05]} Qxc7 {[%emt 0:03:45]} 21. Rxc7 {
[%emt 0:00:08]} h3 {[%emt 0:00:11]} 22. Bf1 {[%emt 0:02:53]} Bf5 {[%emt 0:00:
21]} 23. Nc3 {[%emt 0:03:48]} Rc8 {[%emt 0:05:46]} 24. Rxc8+ {[%emt 0:01:44]}
Bxc8 {[%emt 0:00:03]} 25. Nxd5 {[%emt 0:00:47]} Nxd5 {[%emt 0:01:51]} 26. Bc4 {
[%emt 0:00:25]} Rc3 {[%emt 0:12:12]} 27. Bxd5 {[%emt 0:00:29]} Ba6 {[%emt 0:00:
49]} 28. Bf3 {[%emt 0:09:30]} f5 {[%emt 0:03:55]} 29. Bd5+ {[%emt 0:00:32]} Kf8
{[%emt 0:06:48]} 30. e4 {[%emt 0:01:13]} Bd3 {[%emt 0:05:35]} 31. exf5 {
[%emt 0:00:37]} Bxf5 {[%emt 0:00:47]} 32. f4 {[%emt 0:00:42]} Ke7 {[%emt 0:02:
37]} 33. Kf2 {[%emt 0:06:04]} Rc2+ {[%emt 0:02:48]} 34. Ke3 {[%emt 0:03:17]}
Rxh2 {[%emt 0:01:27]} 35. Bf3 {[%emt 0:00:20]} Rb2 {[%emt 0:02:31]} 36. Re1 {
[%emt 0:04:23]} h2 {[%emt 0:00:43]} 37. g4 {[%emt 0:00:25]} Bd7 {[%emt 0:01:11]
} 38. f5 {[%emt 0:03:36]} Kf6 {[%emt 0:01:17]} 39. Kf4 {[%emt 0:02:11]} Rf2 {
[%emt 0:02:33]} 40. Kg3 {[%emt 0:01:48]} Rxf3+ {[%emt 0:11:15]} 41. Kxf3 {
[%emt 0:30:13]} Bc6+ {[%emt 0:31:48]} 42. Kf4 {[%emt 0:00:20]} h1=Q {[%emt 0:
00:00]} 43. g5+ {[%emt 0:00:00]} Kf7 {[%emt 0:00:00]} 44. Rxh1 {[%emt 0:00:00]}
Bxh1 {[%emt 0:00:00]} 45. Ke5 {[%emt 0:00:00]} Bf3 {[%emt 0:00:00]} 46. f6 {
[%emt 0:00:00]} g6 {[%emt 0:00:00]} 47. Kd6 {[%emt 0:00:00]} Ke8 {[%emt 0:00:
00]} 48. Kc7 {[%emt 0:00:00]} Bd5 {[%emt 0:00:00]} 49. Kd6 {[%emt 0:00:00]} Bb3
{[%emt 0:00:00]} 50. Kc7 {[%emt 0:00:00]} Kf7 {[%emt 0:00:00]} 51. Kd6 {
[%emt 0:00:00]} Ba4 {[%emt 0:00:00]} 52. Ke5 {[%emt 0:00:00]} 1/2-1/2

[Event "EICC 2021"]
[Site "Reykjavik"]
[Date "2021.09.05"]
[Round "11.32"]
[White "Blohberger, Felix"]
[Black "Gajewski, Grzegorz"]
[Result "0-1"]
[ECO "B11"]
[WhiteElo "2502"]
[BlackElo "2617"]
[Annotator "ChessBase"]
[PlyCount "70"]
[EventDate "2021.08.26"]
[EventType "swiss"]
[EventCountry "ISL"]
[Tiebreak "Cut1 Buchholz"]
[SourceTitle "playchess.com"]
[Source "ChessBase"]
[SourceQuality "1"]
[TimeControl "40/5400+30:1800+30"]

1. e4 {[%emt 0:01:19]} c6 {[%emt 0:00:03]} 2. Nf3 {[%emt 0:00:19]} d5 {[%emt 0:
00:06]} 3. Nc3 {[%emt 0:00:04]} Bg4 {[%emt 0:00:12]} 4. h3 {[%emt 0:00:05]}
Bxf3 {[%emt 0:00:05]} 5. Qxf3 {[%emt 0:00:04]} e6 {[%emt 0:00:13]} 6. Be2 {
[%emt 0:00:06]} Nf6 {[%emt 0:00:12]} 7. O-O {[%emt 0:00:07]} Be7 {[%emt 0:00:
12]} 8. Rd1 {[%emt 0:00:12]} d4 {[%emt 0:01:35]} 9. Nb1 {[%emt 0:00:59]} h5 {
[%emt 0:04:45]} 10. d3 {[%emt 0:07:33]} c5 {[%emt 0:05:47]} 11. Qg3 {[%emt 0:
21:08]} Nc6 {[%emt 0:04:04]} 12. e5 {[%emt 0:11:13]} Nd5 {[%emt 0:03:57]} 13.
Qxg7 {[%emt 0:00:50]} Kd7 {[%emt 0:00:03]} 14. Bf3 {[%emt 0:08:42]} Rg8 {
[%emt 0:02:13]} 15. Qxf7 {[%emt 0:04:53]} Nxe5 {[%emt 0:00:08]} 16. Qxh5 {
[%emt 0:00:23]} Nxf3+ {[%emt 0:10:48]} 17. Qxf3 {[%emt 0:00:28]} Qc7 {[%emt 0:
01:40]} 18. c4 {[%emt 0:15:59]} Raf8 {[%emt 0:04:59]} 19. Qe2 {[%emt 0:01:41]}
Nf4 {[%emt 0:13:09]} 20. Bxf4 {[%emt 0:00:15]} Qxf4 {[%emt 0:00:04]} 21. Nd2 {
[%emt 0:02:35]} Bd6 {[%emt 0:02:04]} 22. Nf1 {[%emt 0:01:03]} Qh4 {[%emt 0:00:
46]} 23. Re1 {[%emt 0:04:38]} Qxh3 {[%emt 0:02:53]} 24. Qe4 {[%emt 0:03:47]}
Rf3 {[%emt 0:11:26]} 25. Qxb7+ {[%emt 0:06:46]} Bc7 {[%emt 0:00:10]} 26. g3 {
[%emt 0:00:12]} Rgf8 {[%emt 0:06:09]} 27. Re2 {[%emt 0:02:38]} Qf5 {[%emt 0:00:
06]} 28. Qe4 {[%emt 0:00:52]} Qf7 {[%emt 0:04:16]} 29. Nh2 {[%emt 0:04:07]}
Rxf2 {[%emt 0:00:03]} 30. Rae1 {[%emt 0:01:16]} Bxg3 {[%emt 0:00:19]} 31. Ng4 {
[%emt 0:00:07]} Rxe2 {[%emt 0:07:02]} 32. Qxe2 {[%emt 0:00:03]} Rg8 {[%emt 0:
00:26]} 33. Rf1 {[%emt 0:01:36]} Bf4 {[%emt 0:00:07]} 34. Qf3 {[%emt 0:00:56]}
Qh5 {[%emt 0:00:12]} 35. Kf2 {[%emt 0:00:33]} Qh4+ {[%emt 0:00:37]} 0-1

[Event "EICC 2021"]
[Site "Reykjavik"]
[Date "2021.09.05"]
[Round "11.33"]
[White "Parligras, Mircea-Emilian"]
[Black "Thorfinnsson, Bragi"]
[Result "1-0"]
[ECO "D37"]
[WhiteElo "2591"]
[BlackElo "2439"]
[Annotator "ChessBase"]
[PlyCount "59"]
[EventDate "2021.08.26"]
[EventType "swiss"]
[EventCountry "ISL"]
[Tiebreak "Cut1 Buchholz"]
[SourceTitle "playchess.com"]
[Source "ChessBase"]
[SourceQuality "1"]
[TimeControl "40/5400+30:1800+30"]

1. d4 {[%emt 0:00:04]} Nf6 {[%emt 0:01:41]} 2. c4 {[%emt 0:00:10]} e6 {[%emt 0:
00:09]} 3. Nf3 {[%emt 0:01:00]} d5 {[%emt 0:01:17]} 4. Nc3 {[%emt 0:00:15]} a6
{[%emt 0:00:37]} 5. cxd5 {[%emt 0:01:16]} exd5 {[%emt 0:00:16]} 6. Qb3 {
[%emt 0:02:33]} b5 {[%emt 0:19:19]} 7. Bg5 {[%emt 0:01:56]} Be6 {[%emt 0:01:05]
} 8. Bxf6 {[%emt 0:22:56]} Qxf6 {[%emt 0:07:00]} 9. a4 {[%emt 0:00:13]} b4 {
[%emt 0:06:54]} 10. Nxd5 {[%emt 0:00:14]} Qd8 {[%emt 0:00:37]} 11. e4 {[%emt 0:
00:06]} c6 {[%emt 0:00:50]} 12. Qe3 {[%emt 0:00:12]} cxd5 {[%emt 0:01:20]} 13.
exd5 {[%emt 0:00:04]} Qxd5 {[%emt 0:00:55]} 14. Rc1 {[%emt 0:12:21]} Be7 {
[%emt 0:05:25]} 15. Bd3 {[%emt 0:03:49]} Ra7 {[%emt 0:12:31]} 16. Be4 {[%emt 0:
19:12]} Qd7 {[%emt 0:13:41]} 17. d5 {[%emt 0:01:12]} Bxd5 {[%emt 0:06:13]} 18.
Ne5 {[%emt 0:13:48]} Qd6 {[%emt 0:02:03]} 19. Bxd5 {[%emt 0:01:32]} Qxd5 {
[%emt 0:02:55]} 20. Rc8+ {[%emt 0:01:08]} Bd8 {[%emt 0:00:09]} 21. Nc6+ {
[%emt 0:01:37]} Kd7 {[%emt 0:00:20]} 22. Qxa7+ {[%emt 0:00:24]} Kxc8 {[%emt 0:
00:15]} 23. Qxb8+ {[%emt 0:00:07]} Kd7 {[%emt 0:00:12]} 24. Qb7+ {[%emt 0:01:
36]} Bc7 {[%emt 0:03:12]} 25. O-O {[%emt 0:00:31]} Qd6 {[%emt 0:01:28]} 26. g3
{[%emt 0:00:17]} h5 {[%emt 0:06:30]} 27. Rc1 {[%emt 0:03:27]} h4 {[%emt 0:01:
47]} 28. Nxb4 {[%emt 0:00:26]} hxg3 {[%emt 0:01:41]} 29. hxg3 {[%emt 0:00:07]}
Rb8 {[%emt 0:01:55]} 30. Rxc7+ {[%emt 0:00:24]} 1-0

[Event "EICC 2021"]
[Site "Reykjavik"]
[Date "2021.09.05"]
[Round "11.34"]
[White "Kulaots, Kaido"]
[Black "Lubbe, Nikolas"]
[Result "0-1"]
[ECO "D35"]
[WhiteElo "2548"]
[BlackElo "2427"]
[Annotator "ChessBase"]
[PlyCount "56"]
[EventDate "2021.08.26"]
[EventType "swiss"]
[EventCountry "ISL"]
[Tiebreak "Cut1 Buchholz"]
[SourceTitle "playchess.com"]
[Source "ChessBase"]
[SourceQuality "1"]
[TimeControl "40/5400+30:1800+30"]

1. d4 {[%emt 0:00:12]} d5 {[%emt 0:00:11]} 2. c4 {[%emt 0:00:28]} e6 {[%emt 0:
00:07]} 3. Nc3 {[%emt 0:00:19]} Nf6 {[%emt 0:00:10]} 4. cxd5 {[%emt 0:00:27]}
exd5 {[%emt 0:00:09]} 5. Bg5 {[%emt 0:00:07]} Be7 {[%emt 0:00:20]} 6. e3 {
[%emt 0:00:27]} O-O {[%emt 0:00:14]} 7. Bd3 {[%emt 0:00:29]} Re8 {[%emt 0:00:
29]} 8. Nge2 {[%emt 0:02:24]} c6 {[%emt 0:03:00]} 9. O-O {[%emt 0:02:27]} Nbd7
{[%emt 0:00:28]} 10. f3 {[%emt 0:02:19]} Nf8 {[%emt 0:04:00]} 11. Kh1 {[%emt 0:
01:42]} a6 {[%emt 0:11:54]} 12. a4 {[%emt 0:10:16]} Ne6 {[%emt 0:10:32]} 13.
Bxf6 {[%emt 0:09:06]} Bxf6 {[%emt 0:00:35]} 14. a5 {[%emt 0:00:21]} g6 {
[%emt 0:20:03]} 15. Bc2 {[%emt 0:06:08]} Qd6 {[%emt 0:13:50]} 16. Qd2 {[%emt 0:
11:04]} Bg7 {[%emt 0:07:33]} 17. Na4 {[%emt 0:06:01]} Bd7 {[%emt 0:01:53]} 18.
Rad1 {[%emt 0:05:01]} Rad8 {[%emt 0:01:39]} 19. Nb6 {[%emt 0:02:18]} Bh6 {
[%emt 0:03:03]} 20. Qc3 {[%emt 0:02:51]} Nc7 {[%emt 0:03:30]} 21. Nxd7 {
[%emt 0:06:30]} Rxe3 {[%emt 0:02:12]} 22. Nc5 {[%emt 0:03:58]} Rxc3 {[%emt 0:
00:04]} 23. bxc3 {[%emt 0:01:06]} Re8 {[%emt 0:05:17]} 24. Bd3 {[%emt 0:00:43]}
Re3 {[%emt 0:01:14]} 25. Nxb7 {[%emt 0:02:00]} Qe7 {[%emt 0:00:09]} 26. Rf2 {
[%emt 0:02:17]} Qa3 {[%emt 0:02:28]} 27. g3 {[%emt 0:02:07]} Bf8 {[%emt 0:03:
34]} 28. Kg2 {[%emt 0:01:12]} Qa4 {[%emt 0:00:17]} 0-1

[Event "EICC 2021"]
[Site "Reykjavik"]
[Date "2021.09.05"]
[Round "11.35"]
[White "Kobo, Ori"]
[Black "Martinovic, Sasa"]
[Result "1/2-1/2"]
[ECO "C07"]
[WhiteElo "2490"]
[BlackElo "2548"]
[Annotator "ChessBase"]
[PlyCount "43"]
[EventDate "2021.08.26"]
[EventType "swiss"]
[EventCountry "ISL"]
[Tiebreak "Cut1 Buchholz"]
[SourceTitle "playchess.com"]
[Source "ChessBase"]
[SourceQuality "1"]
[TimeControl "40/5400+30:1800+30"]

1. e4 {[%emt 0:01:53]} e6 {[%emt 0:00:03]} 2. d4 {[%emt 0:00:28]} d5 {[%emt 0:
00:04]} 3. Nd2 {[%emt 0:00:08]} c5 {[%emt 0:00:05]} 4. exd5 {[%emt 0:00:17]}
Qxd5 {[%emt 0:00:07]} 5. Ngf3 {[%emt 0:00:12]} cxd4 {[%emt 0:00:15]} 6. Bc4 {
[%emt 0:00:09]} Qd6 {[%emt 0:00:11]} 7. O-O {[%emt 0:00:17]} Nf6 {[%emt 0:00:
04]} 8. Nb3 {[%emt 0:00:14]} Nc6 {[%emt 0:00:06]} 9. Nbxd4 {[%emt 0:00:12]}
Nxd4 {[%emt 0:00:06]} 10. Nxd4 {[%emt 0:00:11]} Qc7 {[%emt 0:00:07]} 11. Bb3 {
[%emt 0:02:43]} Bd7 {[%emt 0:00:14]} 12. c3 {[%emt 0:09:16]} Bd6 {[%emt 0:00:
56]} 13. h3 {[%emt 0:00:46]} O-O {[%emt 0:04:22]} 14. Qe2 {[%emt 0:07:10]} Bh2+
{[%emt 0:03:05]} 15. Kh1 {[%emt 0:00:17]} Bf4 {[%emt 0:00:08]} 16. Re1 {
[%emt 0:05:08]} Rfd8 {[%emt 0:05:15]} 17. Bxf4 {[%emt 0:03:42]} Qxf4 {[%emt 0:
00:07]} 18. Rad1 {[%emt 0:00:06]} Bc6 {[%emt 0:16:16]} 19. Nxc6 {[%emt 0:17:18]
} bxc6 {[%emt 0:00:03]} 20. Kg1 {[%emt 0:00:49]} Qc7 {[%emt 0:02:57]} 21. Qc4 {
[%emt 0:04:13]} Qb6 {[%emt 0:02:30]} 22. Qe2 {[%emt 0:06:02]} 1/2-1/2

[Event "EICC 2021"]
[Site "Reykjavik"]
[Date "2021.09.05"]
[Round "11.36"]
[White "Vrolijk, Liam"]
[Black "Van Foreest, Lucas"]
[Result "1/2-1/2"]
[ECO "D39"]
[WhiteElo "2480"]
[BlackElo "2544"]
[Annotator "ChessBase"]
[PlyCount "50"]
[EventDate "2021.08.26"]
[EventType "swiss"]
[EventCountry "ISL"]
[Tiebreak "Cut1 Buchholz"]
[SourceTitle "playchess.com"]
[Source "ChessBase"]
[SourceQuality "1"]
[TimeControl "40/5400+30:1800+30"]

1. d4 {[%emt 0:00:03]} e6 {[%emt 0:00:14]} 2. Nf3 {[%emt 0:00:14]} d5 {[%emt 0:
00:14]} 3. c4 {[%emt 0:01:00]} Nf6 {[%emt 0:00:16]} 4. Nc3 {[%emt 0:00:09]}
dxc4 {[%emt 0:00:28]} 5. e4 {[%emt 0:00:20]} Bb4 {[%emt 0:00:35]} 6. Bg5 {
[%emt 0:00:21]} c5 {[%emt 0:00:20]} 7. Bxc4 {[%emt 0:03:38]} cxd4 {[%emt 0:00:
17]} 8. Nxd4 {[%emt 0:00:08]} Bxc3+ {[%emt 0:00:05]} 9. bxc3 {[%emt 0:00:11]}
Qa5 {[%emt 0:00:04]} 10. Bxf6 {[%emt 0:03:26]} Qxc3+ {[%emt 0:00:06]} 11. Kf1 {
[%emt 0:00:09]} gxf6 {[%emt 0:00:04]} 12. Rc1 {[%emt 0:00:29]} Qa5 {[%emt 0:00:
08]} 13. Bb5+ {[%emt 0:04:13]} Ke7 {[%emt 0:00:09]} 14. e5 {[%emt 0:00:42]}
fxe5 {[%emt 0:00:50]} 15. Qh5 {[%emt 0:00:48]} Nd7 {[%emt 0:00:56]} 16. Qg5+ {
[%emt 0:00:42]} Kf8 {[%emt 0:00:15]} 17. Rxc8+ {[%emt 0:00:48]} Rxc8 {[%emt 0:
00:03]} 18. Bxd7 {[%emt 0:00:11]} Qd8 {[%emt 0:00:10]} 19. Nxe6+ {[%emt 0:00:
19]} fxe6 {[%emt 0:00:05]} 20. Qh6+ {[%emt 0:00:07]} Ke7 {[%emt 0:00:29]} 21.
Qxe6+ {[%emt 0:00:08]} Kf8 {[%emt 0:00:03]} 22. Qh6+ {[%emt 0:00:13]} Ke7 {
[%emt 0:00:05]} 23. Qe6+ {[%emt 0:00:05]} Kf8 {[%emt 0:00:01]} 24. Qh6+ {
[%emt 0:00:09]} Ke7 {[%emt 0:00:06]} 25. Qe6+ {[%emt 0:00:15]} Kf8 {[%emt 0:00:
06]} 1/2-1/2

[Event "EICC 2021"]
[Site "Reykjavik"]
[Date "2021.09.05"]
[Round "11.37"]
[White "Loiseau, Quentin"]
[Black "Valsecchi, Alessio"]
[Result "1/2-1/2"]
[ECO "D24"]
[WhiteElo "2466"]
[BlackElo "2527"]
[Annotator "ChessBase"]
[PlyCount "152"]
[EventDate "2021.08.26"]
[EventType "swiss"]
[EventCountry "ISL"]
[Tiebreak "Cut1 Buchholz"]
[SourceTitle "playchess.com"]
[Source "ChessBase"]
[SourceQuality "1"]
[TimeControl "40/5400+30:1800+30"]

1. d4 {[%emt 0:00:08]} Nf6 {[%emt 0:00:31]} 2. c4 {[%emt 0:00:21]} e6 {[%emt 0:
00:09]} 3. Nf3 {[%emt 0:00:22]} d5 {[%emt 0:00:11]} 4. Nc3 {[%emt 0:00:06]}
dxc4 {[%emt 0:00:38]} 5. e4 {[%emt 0:00:18]} b5 {[%emt 0:00:11]} 6. Nxb5 {
[%emt 0:02:02]} Nxe4 {[%emt 0:00:18]} 7. Qa4 {[%emt 0:00:10]} c6 {[%emt 0:00:
57]} 8. Nc3 {[%emt 0:06:42]} Nd6 {[%emt 0:00:19]} 9. Bf4 {[%emt 0:06:07]} Qb6 {
[%emt 0:13:51]} 10. Be2 {[%emt 0:11:18]} Ba6 {[%emt 0:27:08]} 11. O-O {[%emt 0:
07:37]} Bb5 {[%emt 0:00:37]} 12. Qc2 {[%emt 0:01:08]} Na6 {[%emt 0:05:15]} 13.
Bxd6 {[%emt 0:11:32]} Bxd6 {[%emt 0:00:07]} 14. Qe4 {[%emt 0:00:02]} Nc7 {
[%emt 0:01:39]} 15. a4 {[%emt 0:10:11]} Ba6 {[%emt 0:01:15]} 16. a5 {[%emt 0:
00:14]} Qb7 {[%emt 0:04:02]} 17. Ne5 {[%emt 0:13:42]} O-O {[%emt 0:13:05]} 18.
Nxc6 {[%emt 0:08:57]} Qxb2 {[%emt 0:02:47]} 19. Na4 {[%emt 0:06:58]} Qb5 {
[%emt 0:04:29]} 20. Rfb1 {[%emt 0:02:01]} Qg5 {[%emt 0:01:47]} 21. Ne5 {
[%emt 0:06:09]} Bxe5 {[%emt 0:05:24]} 22. dxe5 {[%emt 0:00:09]} Nd5 {[%emt 0:
00:40]} 23. g3 {[%emt 0:03:52]} Rac8 {[%emt 0:00:41]} 24. Qd4 {[%emt 0:00:30]}
Qe7 {[%emt 0:00:49]} 25. Rc1 {[%emt 0:00:25]} Rfd8 {[%emt 0:01:15]} 26. Bf1 {
[%emt 0:01:02]} g6 {[%emt 0:02:54]} 27. Nb2 {[%emt 0:00:32]} Nb4 {[%emt 0:00:
57]} 28. Qe3 {[%emt 0:01:02]} c3 {[%emt 0:02:08]} 29. Rxc3 {[%emt 0:00:28]} Nd5
{[%emt 0:01:04]} 30. Rxc8 {[%emt 0:00:43]} Nxe3 {[%emt 0:00:11]} 31. Rxd8+ {
[%emt 0:00:30]} Qxd8 {[%emt 0:00:02]} 32. Bxa6 {[%emt 0:00:07]} Qd4 {[%emt 0:
02:04]} 33. Ra3 {[%emt 0:00:21]} Qxe5 {[%emt 0:01:07]} 34. Rxe3 {[%emt 0:00:12]
} Qxb2 {[%emt 0:01:11]} 35. Bf1 {[%emt 0:00:02]} a6 {[%emt 0:00:32]} 36. Bxa6 {
[%emt 0:00:18]} Qa1+ {[%emt 0:00:05]} 37. Kg2 {[%emt 0:00:38]} Qxa5 {[%emt 0:
00:07]} 38. Be2 {[%emt 0:00:02]} e5 {[%emt 0:02:39]} 39. h4 {[%emt 0:00:54]} f5
{[%emt 0:01:33]} 40. Bc4+ {[%emt 0:00:06]} Kg7 {[%emt 0:00:33]} 41. Be2 {
[%emt 0:05:53]} Kf6 {[%emt 0:02:57]} 42. Rd3 {[%emt 0:04:30]} Qc5 {[%emt 0:00:
23]} 43. Kg1 {[%emt 0:03:22]} Qb4 {[%emt 0:00:15]} 44. Rd7 {[%emt 0:00:53]}
Qe1+ {[%emt 0:02:07]} 45. Bf1 {[%emt 0:00:02]} e4 {[%emt 0:01:21]} 46. Kg2 {
[%emt 0:01:53]} Qc3 {[%emt 0:03:40]} 47. Kg1 {[%emt 0:01:52]} Qc1 {[%emt 0:02:
07]} 48. Rxh7 {[%emt 0:01:17]} Qe1 {[%emt 0:08:16]} 49. Ra7 {[%emt 0:01:44]} f4
{[%emt 0:01:55]} 50. gxf4 {[%emt 0:01:27]} e3 {[%emt 0:01:05]} 51. Ra2 {
[%emt 0:00:53]} Kf5 {[%emt 0:00:11]} 52. Re2 {[%emt 0:01:02]} exf2+ {[%emt 0:
00:07]} 53. Kg2 {[%emt 0:01:46]} Kg4 {[%emt 0:01:40]} 54. Rxf2 {[%emt 0:01:47]}
Qe3 {[%emt 0:00:17]} 55. Be2+ {[%emt 0:01:50]} Kxh4 {[%emt 0:00:20]} 56. Kf1 {
[%emt 0:01:08]} Qc1+ {[%emt 0:04:30]} 57. Kg2 {[%emt 0:00:29]} Qe3 {[%emt 0:00:
56]} 58. Kf1 {[%emt 0:00:08]} Kg3 {[%emt 0:00:04]} 59. Rg2+ {[%emt 0:00:15]}
Kh3 {[%emt 0:00:21]} 60. Rxg6 {[%emt 0:00:49]} Qxf4+ {[%emt 0:03:12]} 61. Ke1 {
[%emt 0:01:01]} Qb4+ {[%emt 0:00:15]} 62. Kf2 {[%emt 0:00:30]} Qc5+ {[%emt 0:
00:08]} 63. Ke1 {[%emt 0:00:11]} Qa5+ {[%emt 0:00:13]} 64. Kd1 {[%emt 0:00:28]}
Qa4+ {[%emt 0:01:17]} 65. Ke1 {[%emt 0:01:32]} Qb4+ {[%emt 0:02:36]} 66. Kf2 {
[%emt 0:00:21]} Qc5+ {[%emt 0:00:23]} 67. Ke1 {[%emt 0:00:08]} Qa5+ {[%emt 0:
00:23]} 68. Kd1 {[%emt 0:00:06]} Qa1+ {[%emt 0:00:05]} 69. Kd2 {[%emt 0:01:05]}
Qb2+ {[%emt 0:00:23]} 70. Ke3 {[%emt 0:00:26]} Qe5+ {[%emt 0:00:27]} 71. Kd2 {
[%emt 0:00:06]} Qf4+ {[%emt 0:00:29]} 72. Ke1 {[%emt 0:00:16]} Qe4 {[%emt 0:00:
15]} 73. Rg4 {[%emt 0:00:10]} Qe3 {[%emt 0:00:05]} 74. Kf1 {[%emt 0:00:32]} Qe5
{[%emt 0:02:21]} 75. Kf2 {[%emt 0:00:07]} Qxe2+ {[%emt 0:00:20]} 76. Kxe2 {
[%emt 0:00:05]} Kxg4 {[%emt 0:00:36]} 1/2-1/2

[Event "EICC 2021"]
[Site "Reykjavik"]
[Date "2021.09.05"]
[Round "11.38"]
[White "Petrov, Martin"]
[Black "Petkov, Momchil"]
[Result "1/2-1/2"]
[ECO "B51"]
[WhiteElo "2521"]
[BlackElo "2443"]
[Annotator "ChessBase"]
[PlyCount "104"]
[EventDate "2021.08.26"]
[EventType "swiss"]
[EventCountry "ISL"]
[Tiebreak "Cut1 Buchholz"]
[SourceTitle "playchess.com"]
[Source "ChessBase"]
[SourceQuality "1"]
[TimeControl "40/5400+30:1800+30"]

1. e4 {[%emt 0:00:15]} c5 {[%emt 0:00:11]} 2. Nf3 {[%emt 0:00:22]} d6 {[%emt 0:
00:12]} 3. Bb5+ {[%emt 0:00:27]} Nd7 {[%emt 0:00:27]} 4. c3 {[%emt 0:00:07]}
Ngf6 {[%emt 0:00:27]} 5. Qe2 {[%emt 0:00:07]} a6 {[%emt 0:00:44]} 6. Ba4 {
[%emt 0:00:06]} b5 {[%emt 0:00:17]} 7. Bc2 {[%emt 0:00:06]} Bb7 {[%emt 0:00:13]
} 8. d4 {[%emt 0:00:08]} e6 {[%emt 0:03:39]} 9. O-O {[%emt 0:01:09]} Be7 {
[%emt 0:02:56]} 10. Re1 {[%emt 0:00:08]} Qc7 {[%emt 0:01:43]} 11. a4 {[%emt 0:
00:15]} O-O {[%emt 0:08:42]} 12. axb5 {[%emt 0:00:58]} axb5 {[%emt 0:00:07]}
13. Rxa8 {[%emt 0:00:05]} Rxa8 {[%emt 0:08:12]} 14. Na3 {[%emt 0:00:05]} b4 {
[%emt 0:07:50]} 15. Nb5 {[%emt 0:00:04]} Qb8 {[%emt 0:03:34]} 16. e5 {[%emt 0:
11:10]} Bxf3 {[%emt 0:04:50]} 17. gxf3 {[%emt 0:02:45]} Ne8 {[%emt 0:09:36]}
18. dxc5 {[%emt 0:16:40]} dxc5 {[%emt 0:04:39]} 19. Bxh7+ {[%emt 0:14:08]} Kxh7
{[%emt 0:00:06]} 20. Qd3+ {[%emt 0:00:02]} Kg8 {[%emt 0:00:08]} 21. Qxd7 {
[%emt 0:00:04]} Qd8 {[%emt 0:06:15]} 22. Qxd8 {[%emt 0:00:48]} Rxd8 {[%emt 0:
00:12]} 23. Be3 {[%emt 0:01:04]} g6 {[%emt 0:04:06]} 24. Ra1 {[%emt 0:01:05]}
Ng7 {[%emt 0:00:36]} 25. Kf1 {[%emt 0:13:43]} Nf5 {[%emt 0:02:15]} 26. Ke2 {
[%emt 0:00:07]} c4 {[%emt 0:07:30]} 27. Nd4 {[%emt 0:09:31]} Nxe3 {[%emt 0:05:
02]} 28. fxe3 {[%emt 0:02:20]} bxc3 {[%emt 0:00:05]} 29. bxc3 {[%emt 0:00:04]}
Rb8 {[%emt 0:00:07]} 30. Ra2 {[%emt 0:05:04]} Rb1 {[%emt 0:00:24]} 31. f4 {
[%emt 0:00:09]} Rc1 {[%emt 0:01:34]} 32. Nb5 {[%emt 0:06:47]} Bh4 {[%emt 0:04:
38]} 33. Kf3 {[%emt 0:01:46]} Be1 {[%emt 0:01:34]} 34. Ra8+ {[%emt 0:05:27]}
Kg7 {[%emt 0:00:37]} 35. Rc8 {[%emt 0:03:43]} Bxc3 {[%emt 0:02:39]} 36. Rxc4 {
[%emt 0:00:04]} Bb2 {[%emt 0:00:17]} 37. Rb4 {[%emt 0:02:15]} Rc2 {[%emt 0:02:
07]} 38. h4 {[%emt 0:00:03]} f6 {[%emt 0:01:22]} 39. Nd4 {[%emt 0:06:00]} Bxd4
{[%emt 0:00:11]} 40. Rb7+ {[%emt 0:00:04]} Kf8 {[%emt 0:02:29]} 41. exd4 {
[%emt 0:30:03]} fxe5 {[%emt 0:18:50]} 42. fxe5 {[%emt 0:00:00]} Rd2 {[%emt 0:
00:03]} 43. Ke3 {[%emt 0:00:00]} Rg2 {[%emt 0:03:11]} 44. Kf4 {[%emt 0:00:00]}
Rd2 {[%emt 0:00:18]} 45. Kg5 {[%emt 0:00:00]} Rxd4 {[%emt 0:00:06]} 46. Rh7 {
[%emt 0:00:00]} Kg8 {[%emt 0:07:47]} 47. Re7 {[%emt 0:00:00]} Re4 {[%emt 0:00:
30]} 48. Kf6 {[%emt 0:04:09]} Rxh4 {[%emt 0:00:21]} 49. Rxe6 {[%emt 0:00:09]}
Kf8 {[%emt 0:01:57]} 50. Ra6 {[%emt 0:01:21]} Rf4+ {[%emt 0:00:07]} 51. Ke6 {
[%emt 0:00:14]} g5 {[%emt 0:01:01]} 52. Kd7 {[%emt 0:00:32]} g4 {[%emt 0:03:38]
} 1/2-1/2